bitfinex/quotes_ETHUSD_20250905
["timestamp","ask_amount","ask_price","bid_price","bid_amount"]
[1757084712326,1.5322,4276.1,4275.8,0.029]
[1757084712526,2.33863423,4276.0,4275.9,0.7028897]
[1757084712722,1.5322,4276.0,4275.9,0.7028897]
[1757084712922,0.4386,4276.0,4275.9,0.7028897]
[1757084713139,3.87083423,4276.0,4275.9,0.7028897]
[1757084713337,3.87037185,4276.9,4275.9,3.04153945]
[1757084713540,1.5322,4276.9,4276.0,0.02338634]
[1757084713845,6.72093731,4277.3,4276.3,2.33843917]
[1757084714047,6.72093731,4277.3,4276.1,2.33855241]
[1757084714048,4.383,4277.3,4276.1,2.33855241]
[1757084714245,4.383,4277.3,4275.9,0.7028897]
[1757084714446,2.33817586,4276.9,4275.9,0.7028897]
[1757084714617,1.0936,4277.2,4276.0,2.33863423]
[1757084714821,0.4386,4278.1,4276.1,1.88418579]
[1757084715147,0.0242,4277.8,4276.5,3.792]
[1757084715349,0.0242,4277.8,4277.7,2.33770484]
[1757084715519,0.0242,4277.8,4277.7,6.72070484]
[1757084715717,0.001,4278.2,4278.1,3.12948626]
[1757084715918,0.001,4278.2,4278.1,2.33748626]
[1757084716160,0.001,4278.2,4278.1,6.84888626]
[1757084716324,0.001,4278.2,4278.1,7.64088626]
[1757084717241,0.001,4278.2,4278.1,7.75768626]
[1757084717444,0.001,4278.2,4278.1,8.76721045]
[1757084718534,1e-08,4278.8,4278.7,3.12915848]
[1757084718763,1e-08,4278.8,4278.7,7.85115848]
[1757084718922,1e-08,4278.8,4278.7,9.36255848]
[1757084719130,1e-08,4278.8,4278.7,27.90313752]
[1757084719323,1e-08,4278.8,4278.7,28.34573752]
[1757084719561,1e-08,4278.8,4278.7,29.59373774]
[1757084721351,1e-08,4279.8,4279.7,6.12861237]
[1757084721658,1e-08,4279.8,4279.7,10.50961237]
[1757084721865,1e-08,4279.8,4279.7,12.86304198]
[1757084722062,1e-08,4279.8,4279.7,27.80564198]
[1757084723269,1e-08,4279.8,4279.7,16.93021498]
[1757084723659,1e-08,4279.8,4279.7,21.31021498]
[1757084723854,1e-08,4279.8,4279.7,16.93021498]
[1757084724054,1e-08,4279.8,4279.7,14.59360261]
[1757084724282,1e-08,4279.8,4279.7,24.31021498]
[1757084724478,1e-08,4279.8,4279.7,26.57812295]
[1757084724680,1e-08,4279.8,4279.7,24.24151058]
[1757084724878,0.43860001,4279.8,4279.7,18.97360261]
[1757084725078,1e-08,4279.8,4279.7,24.31021498]
[1757084725908,1e-08,4279.8,4279.7,25.10221498]
[1757084726468,1e-08,4279.8,4279.7,26.61361498]
[1757084726668,1e-08,4279.8,4279.7,28.88152295]
[1757084726870,0.001,4281.0,4280.9,2.33595739]
[1757084727071,0.001,4281.0,4280.9,12.40720584]
[1757084727300,0.001,4281.0,4280.9,13.91860584]
[1757084727594,0.001,4281.0,4280.9,24.15412166]
[1757084727768,0.001,4281.0,4280.9,30.3876575]
[1757084727965,0.001,4283.4,4280.9,30.3876575]
[1757084727966,1e-08,4281.9,4281.8,6.12746639]
[1757084728181,1e-08,4281.9,4281.8,10.50646639]
[1757084728389,1e-08,4281.9,4281.8,12.01786639]
[1757084728569,1e-08,4281.9,4281.8,22.25486639]
[1757084728770,1e-08,4281.9,4281.8,27.20079058]
[1757084728965,1e-08,4281.9,4281.8,21.75299058]
[1757084729165,1e-08,4281.9,4281.8,26.13199058]
[1757084729366,1e-08,4281.9,4281.8,21.75299058]
[1757084729706,1e-08,4281.9,4281.8,26.13099058]
[1757084730010,1e-08,4281.9,4281.8,26.45759058]
[1757084730169,0.025,4282.8,4282.7,6.12697559]
[1757084730369,0.025,4282.8,4282.7,13.18817763]
[1757084730604,0.003,4283.8,4283.7,2.33443051]
[1757084730780,1e-08,4283.8,4283.7,22.00443051]
[1757084731099,1e-08,4283.8,4283.7,25.00443051]
[1757084731290,1e-08,4283.8,4283.7,25.09793728]
[1757084731483,1e-08,4283.8,4283.7,27.36584525]
[1757084731686,1e-08,4283.8,4283.7,27.53799989]
[1757084732572,1e-08,4283.8,4283.7,27.53699989]
[1757084733166,1e-08,4283.8,4283.7,23.15999989]
[1757084733474,1e-08,4283.8,4283.7,29.04839989]
[1757084733674,1e-08,4283.8,4283.7,23.15999989]
[1757084734099,1e-08,4283.8,4283.7,25.26909192]
[1757084734701,1e-08,4283.8,4283.7,26.78049192]
[1757084735004,1e-08,4283.8,4283.7,21.96089192]
[1757084735199,1e-08,4283.8,4283.7,25.26809192]
[1757084735400,1e-08,4283.8,4283.7,20.89209192]
[1757084735793,1e-08,4283.8,4283.7,17.10009192]
[1757084736004,1.53220001,4283.8,4283.7,0.09350677]
[1757084736303,1e-08,4283.8,4283.7,4.77493728]
[1757084736520,1e-08,4283.8,4283.7,20.06693728]
[1757084737017,1e-08,4283.8,4283.7,22.09493728]
[1757084737306,1e-08,4283.8,4283.7,19.98784525]
[1757084737477,1e-08,4283.8,4283.7,27.36284525]
[1757084739371,1e-08,4283.8,4283.7,22.98784525]
[1757084739583,1e-08,4283.8,4283.7,27.36284525]
[1757084739827,1.57420001,4283.8,4281.8,2.75452419]
[1757084739991,1.5742,4283.7,4283.6,0.09355708]
[1757084740191,1.5742,4283.7,4282.8,4.384]
[1757084740518,1.5742,4283.6,4282.8,4.384]
[1757084740721,1.6902,4283.5,4282.9,4.383]
[1757084741211,1.5742,4283.5,4282.9,4.383]
[1757084741376,2.3344636,4283.7,4283.1,0.116]
[1757084741577,2.05267918,4283.7,4283.1,0.116]
[1757084741779,1.5742,4283.7,4283.1,14.616]
[1757084741976,1.5742,4283.7,4283.2,4.38]
[1757084742213,1.5742,4283.6,4283.2,4.38]
[1757084742386,1.5742,4283.5,4283.3,0.116]
[1757084742730,1.5742,4283.4,4283.3,0.116]
[1757084743081,1.1212,4283.4,4283.3,0.116]
[1757084743306,1e-08,4283.8,4283.7,2.33443051]
[1757084743517,1e-08,4283.8,4283.7,4.374]
[1757084743684,1e-08,4283.8,4283.4,0.116]
[1757084744103,1.1212,4283.7,4283.5,4.374]
[1757084744322,1.1212,4283.6,4283.3,4.374]
[1757084744480,1.1212,4283.5,4283.3,4.374]
[1757084744682,0.11600001,4283.8,4283.1,14.616]
[1757084744683,1.1212,4283.4,4283.1,14.616]
[1757084744883,1.1212,4283.3,4283.1,0.116]
[1757084745122,1.5742,4283.2,4281.9,0.70162227]
[1757084745278,0.116,4282.7,4282.0,0.116]
[1757084745477,1.5742,4282.6,4282.1,14.5]
[1757084745692,1.5742,4282.5,4282.1,18.874]
[1757084745977,1.1212,4282.4,4282.1,18.874]
[1757084746213,1.1212,4283.2,4282.9,2.33482914]
[1757084746515,1.1212,4283.2,4283.0,4.374]
[1757084746720,0.116,4283.6,4282.8,4.374]
[1757084746721,1.5742,4283.1,4282.8,4.374]
[1757084746924,1.5742,4283.0,4282.8,4.374]
[1757084747104,0.116,4283.5,4282.9,2.33486656]
[1757084747303,0.116,4283.5,4282.8,4.49]
[1757084747916,0.116,4283.5,4283.3,2.33463631]
[1757084748224,1.1212,4283.6,4283.4,2.33458965]
[1757084748518,1.5742,4283.5,4283.1,4.374]
[1757084748685,1.5742,4283.4,4283.1,4.374]
[1757084748887,0.11600001,4283.8,4283.2,0.70165016]
[1757084749413,0.11600001,4283.8,4283.3,0.116]
[1757084749414,1e-08,4283.8,4283.3,0.116]
[1757084749596,1.5742,4283.7,4283.3,0.116]
[1757084749790,1e-08,4283.8,4283.3,0.116]
[1757084749791,1.5742,4283.6,4283.3,0.116]
[1757084750016,1.1212,4283.5,4283.3,2.45064037]
[1757084750332,0.00100001,4283.8,4283.5,2.33453951]
[1757084750512,0.00100001,4283.8,4283.4,4.49]
[1757084750719,0.00100001,4283.8,4283.7,2.33443051]
[1757084750916,0.00100001,4283.8,4283.7,6.82443051]
[1757084751120,0.00100001,4283.8,4283.7,10.93533051]
[1757084751327,0.00100001,4283.8,4283.7,27.97611665]
[1757084752741,0.00100001,4283.8,4283.7,22.50431665]
[1757084752893,0.00100001,4283.8,4283.7,26.44341665]
[1757084753092,0.00100001,4283.8,4283.7,26.76231665]
[1757084753304,0.00100001,4283.8,4283.7,27.86011665]
[1757084753508,0.00100001,4283.8,4283.7,26.76231665]
[1757084755790,0.00100001,4283.8,4283.7,27.86011665]
[1757084758096,0.453,4286.0,4284.7,3.12588568]
[1757084758296,1.1212,4286.3,4284.7,12.78720822]
[1757084758536,1e-08,4284.8,4284.7,12.76386937]
[1757084759127,1e-08,4284.8,4284.7,27.69876937]
[1757084759942,1e-08,4284.8,4284.7,24.26386937]
[1757084760229,1e-08,4284.8,4284.7,22.89086937]
[1757084760431,1.57420001,4284.8,4284.7,22.92488568]
[1757084760604,1.12120001,4284.8,4284.7,23.62616353]
[1757084760932,1.57420001,4284.8,4284.7,26.62616353]
[1757084761094,1e-08,4284.8,4284.7,23.62616353]
[1757084761294,1.12120001,4284.8,4284.7,26.62616353]
[1757084761494,1e-08,4284.8,4284.7,26.62616353]
[1757084761799,1e-08,4284.8,4284.7,22.18818582]
[1757084762004,1e-08,4284.8,4284.7,28.8940715]
[1757084762214,1e-08,4284.8,4284.7,29.86109514]
[1757084762720,1e-08,4284.8,4284.7,30.29599514]
[1757084762923,1e-08,4284.8,4284.7,47.15775144]
[1757084763222,1e-08,4284.8,4284.7,47.27375144]
[1757084763409,1e-08,4284.8,4284.7,48.37155144]
[1757084763599,1e-08,4284.8,4284.7,47.27375144]
[1757084763787,1e-08,4284.8,4284.7,46.83885144]
[1757084764123,1e-08,4284.8,4284.7,48.37155144]
[1757084765422,1e-08,4284.8,4284.7,25.60509514]
[1757084765629,1e-08,4284.8,4284.7,29.97609514]
[1757084765994,1e-08,4284.8,4284.7,25.60509514]
[1757084766223,1e-08,4284.8,4284.7,29.18409514]
[1757084766409,1e-08,4284.8,4284.7,29.97609514]
[1757084767231,1e-08,4284.8,4284.7,26.18309514]
[1757084767524,0.00100001,4284.8,4284.7,29.97509514]
[1757084767900,0.00100001,4284.8,4284.7,46.72085144]
[1757084768099,0.00100001,4284.8,4284.7,47.27175144]
[1757084768496,0.00100001,4284.8,4284.7,24.81309514]
[1757084768828,1.57520001,4284.8,4284.7,23.62416353]
[1757084769127,0.00100001,4284.8,4284.7,26.62416353]
[1757084769434,1.37320001,4284.8,4284.7,26.62416353]
[1757084769628,1.83860001,4284.8,4284.7,26.62416353]
[1757084769830,0.00100001,4284.8,4284.7,26.62416353]
[1757084770128,0.00100001,4284.8,4284.7,29.6840715]
[1757084770808,0.00020001,4284.8,4284.7,29.6840715]
[1757084771211,0.00020001,4284.8,4284.7,25.3140715]
[1757084771409,0.00020001,4284.8,4284.7,29.6830715]
[1757084771898,1.83780001,4284.8,4284.7,28.8910715]
[1757084772099,1.83780001,4284.8,4284.7,22.25416353]
[1757084772335,1.83780001,4284.8,4284.7,19.57027785]
[1757084772648,1.83780001,4284.8,4283.9,0.17547701]
[1757084772801,1.53800001,4284.8,4284.0,4.369]
[1757084773002,3.87168568,4284.7,4284.0,4.369]
[1757084773335,1.5378,4284.6,4283.7,4.369]
[1757084773503,1.5378,4284.5,4283.8,4.394]
[1757084773703,1.5378,4284.4,4283.9,4.369]
[1757084773905,1.5378,4284.3,4283.9,18.869]
[1757084774220,1.5378,4284.2,4283.9,4.369]
[1757084774423,1.5378,4284.1,4283.8,0.025]
[1757084774622,1.5378,4284.0,4283.8,0.025]
[1757084774833,1.5378,4283.9,4283.8,2.35937602]
[1757084775007,1.5378,4283.9,4283.8,0.025]
[1757084775208,1.5378,4283.9,4283.8,2.35937602]
[1757084775437,1.5378,4283.9,4283.8,0.025]
[1757084776410,4.02590152,4283.9,4283.8,0.025]
[1757084776621,1.99138,4283.9,4283.8,0.025]
[1757084777054,1.8376,4283.9,4283.8,0.025]
[1757084777244,4.17192152,4283.9,4283.8,0.025]
[1757084777429,1.8376,4283.9,4283.8,0.025]
[1757084777757,4.17192152,4283.9,4283.8,0.025]
[1757084778255,7.17192152,4283.9,4283.8,0.025]
[1757084778463,2.33486656,4282.9,4282.8,0.025]
[1757084778823,1.8376,4282.9,4282.8,0.025]
[1757084779463,0.8812,4282.9,4282.8,0.025]
[1757084779827,3.40657932,4284.2,4282.9,2.33486656]
[1757084780035,0.4654,4284.1,4283.0,0.67288666]
[1757084780237,0.2998,4283.1,4283.0,0.67288666]
[1757084780435,1.8376,4283.1,4282.8,0.025]
[1757084780762,1.5378,4283.0,4282.8,0.025]
[1757084781123,1.8376,4282.9,4282.8,2.35992107]
[1757084781329,0.4654,4283.5,4283.2,2.33469179]
[1757084781625,1.719,4284.0,4283.2,2.33466895]
[1757084781825,1.719,4284.0,4283.1,2.33473664]
[1757084782023,1.719,4284.0,4282.8,4.394]
[1757084782227,1.719,4284.0,4282.9,0.4394]
[1757084782445,0.4654,4284.7,4283.8,2.33434459]
[1757084782636,1.5378,4284.7,4283.3,4.369]
[1757084782832,1.5378,4284.7,4283.9,2.33428814]
[1757084783041,0.2998,4284.0,4283.3,0.70155827]
[1757084783346,1.8376,4284.0,4283.1,4.368]
[1757084783551,0.4654,4283.9,4283.1,4.368]
[1757084784059,0.4654,4283.8,4282.8,4.393]
[1757084784354,0.4654,4284.3,4282.9,2.77416112]
[1757084784660,1.0724,4284.1,4282.9,0.4393]
[1757084784827,1.0724,4284.1,4282.8,5.09465509]
[1757084784828,0.4654,4284.0,4282.8,5.09465509]
[1757084785028,1.5378,4284.0,4282.8,5.09465509]
[1757084785428,1.5378,4284.0,4283.4,2.33455017]
[1757084785629,1.5378,4284.0,4282.9,2.33486656]
[1757084785960,5.4404,4284.7,4283.0,0.74295217]
[1757084786160,0.4654,4284.4,4283.5,2.33453198]
[1757084786359,0.4654,4284.4,4283.1,6.70271202]
[1757084786658,0.4654,4284.4,4283.6,2.33444275]
[1757084786858,2.33407963,4284.4,4283.1,4.368]
[1757084787062,0.00020001,4284.8,4284.7,2.33388568]
[1757084787241,0.00020001,4284.8,4284.5,2.33399258]
[1757084787429,0.00020001,4284.8,4284.6,2.33393458]
[1757084788030,0.00020001,4284.8,4284.7,2.33388568]
[1757084788328,0.00020001,4284.8,4284.7,2.63558568]
[1757084788533,0.00020001,4284.8,4284.7,8.98218962]
[1757084788750,0.00020001,4284.8,4284.7,7.39378962]
[1757084789276,0.00020001,4284.8,4284.7,12.77418962]
[1757084789841,0.00020001,4284.8,4284.7,12.89018962]
[1757084790065,0.00020001,4284.8,4284.7,12.77418962]
[1757084790765,0.001,4285.3,4284.7,12.77418962]
[1757084790766,1e-08,4285.8,4285.7,3.12534111]
[1757084790975,1e-08,4285.8,4285.7,12.78054958]
[1757084791181,1e-08,4285.8,4285.7,14.64731617]
[1757084791378,1e-08,4285.8,4285.7,14.34561617]
[1757084791751,1e-08,4286.8,4286.7,6.12479679]
[1757084791954,1e-08,4286.8,4286.7,10.49079679]
[1757084792148,1e-08,4286.8,4286.7,14.34710476]
[1757084792351,0.025,4288.8,4286.7,12.19033601]
[1757084792558,0.9974,4289.1,4287.7,3.792]
[1757084792909,0.9974,4289.1,4288.4,2.33183117]
[1757084793041,0.9974,4289.1,4288.6,2.33172896]
[1757084793389,0.9974,4289.1,4288.4,4.366]
[1757084793390,0.4654,4289.0,4288.4,4.366]
[1757084793748,0.4654,4288.9,4287.5,4.719]
[1757084794083,0.4654,4288.9,4287.7,3.0]
[1757084794282,2.33099479,4290.1,4287.9,2.33210355]
[1757084794458,0.4654,4288.8,4288.0,4.365]
[1757084794647,1.5378,4288.8,4288.0,9.69708925]
[1757084794845,1.5378,4288.8,4288.0,9.6970516]
[1757084795045,1.5378,4288.8,4287.5,1.719]
[1757084795046,0.2998,4288.1,4287.9,0.70081423]
[1757084795255,0.4654,4288.7,4287.9,4.365]
[1757084795552,2.64403954,4290.8,4288.0,3.02332089]
[1757084795553,1.0724,4289.4,4288.0,3.02332089]
[1757084795741,1.0724,4289.4,4288.9,2.33154861]
[1757084795942,1.5378,4289.3,4288.9,2.33159135]
[1757084796359,1.5378,4289.3,4288.7,4.364]
[1757084796566,1.0724,4289.7,4288.7,4.364]
[1757084796773,1.0724,4289.7,4288.8,2.33161526]
[1757084796966,1.0724,4289.7,4288.7,4.364]
[1757084797165,0.2998,4288.8,4288.6,4.364]
[1757084797342,1.0724,4289.6,4288.2,0.0233198]
[1757084797681,0.4654,4290.0,4289.3,2.33134921]
[1757084797982,0.4654,4290.0,4289.4,2.33132834]
[1757084798291,0.4654,4290.0,4289.1,2.33145561]
[1757084798576,0.4654,4290.0,4289.3,2.33136877]
[1757084798777,1.0724,4290.3,4289.0,4.363]
[1757084798959,0.001,4290.7,4289.9,2.33101547]
[1757084799275,0.001,4290.7,4289.8,0.02331111]
[1757084799475,0.001,4290.7,4289.2,2.33143709]
[1757084799675,0.001,4290.7,4289.9,2.3310254]
[1757084799853,0.001,4290.7,4289.5,4.362]
[1757084800060,0.116,4290.5,4289.8,0.116]
[1757084800544,2.33076768,4290.5,4289.5,0.70054421]
[1757084800746,0.116,4290.1,4289.4,4.478]
[1757084800946,0.116,4290.1,4289.4,0.116]
[1757084801665,0.116,4290.1,4289.4,2.44729556]
[1757084801870,0.116,4290.1,4289.7,2.33113753]
[1757084802069,0.116,4290.1,4289.7,2.33114643]
[1757084802378,0.116,4290.1,4289.5,2.33127404]
[1757084802677,0.116,4290.1,4289.9,2.33101289]
[1757084802883,0.116,4290.5,4290.0,2.33099474]
[1757084803181,0.001,4290.7,4290.5,0.116]
[1757084804989,0.001,4290.7,4290.1,4.476]
[1757084805349,2.78626182,4290.7,4290.1,0.116]
[1757084805582,0.116,4290.5,4290.0,4.359]
[1757084805782,0.116,4290.5,4290.0,6.68997939]
[1757084806046,0.116,4290.5,4289.8,2.44711018]
[1757084806047,1.5461,4290.4,4289.8,0.116]
[1757084806246,0.116,4290.3,4289.6,0.116]
[1757084806686,0.116,4290.3,4289.6,2.44718236]
[1757084806885,0.116,4290.3,4289.6,0.116]
[1757084807273,0.116,4290.3,4289.7,2.33116534]
[1757084807486,0.116,4290.3,4289.7,0.02331165]
[1757084807685,0.117,4290.7,4290.2,0.2864]
[1757084807849,0.117,4290.7,4290.0,0.116]
[1757084808751,0.117,4290.7,4290.1,2.33093663]
[1757084808953,0.117,4290.7,4290.0,0.116]
[1757084809150,0.117,4290.7,4290.2,2.33087019]
[1757084809378,0.117,4290.7,4290.0,0.116]
[1757084809781,0.4546,4290.6,4289.3,0.70053603]
[1757084809983,0.116,4290.4,4289.7,0.116]
[1757084810182,0.116,4290.4,4289.9,2.33101731]
[1757084810386,0.116,4290.4,4290.0,2.33097376]
[1757084810590,0.116,4290.4,4289.7,0.116]
[1757084810770,0.116,4290.2,4289.5,2.44726713]
[1757084811102,0.116,4290.2,4289.5,0.116]
[1757084811308,0.12075,4290.2,4289.2,5.05758674]
[1757084811456,0.116,4290.0,4289.6,2.33118741]
[1757084811656,0.116,4290.0,4289.5,2.33122092]
[1757084812385,0.116,4290.0,4289.3,2.44738256]
[1757084812598,0.116,4290.0,4289.3,0.116]
[1757084812786,0.3096,4289.4,4288.8,4.381]
[1757084813099,0.4256,4289.4,4288.9,2.33156297]
[1757084813266,0.116,4289.4,4289.0,2.33154351]
[1757084813454,0.116,4289.4,4288.8,0.025]
[1757084814289,0.3096,4288.9,4288.8,0.025]
[1757084814690,1.8557,4288.9,4288.8,0.025]
[1757084814877,7.60602388,4288.9,4288.8,0.025]
[1757084815486,0.3096,4288.9,4288.8,0.025]
[1757084815865,4.5461,4289.4,4288.8,0.025]
[1757084816070,1.5461,4289.4,4288.8,0.025]
[1757084816271,3.87746252,4289.4,4288.8,0.025]
[1757084816471,5.10553168,4289.4,4288.8,0.025]
[1757084816867,2.33138274,4289.3,4288.8,0.025]
[1757084817070,2.77416916,4289.4,4288.8,0.025]
[1757084817264,1.22806916,4289.4,4288.8,0.025]
[1757084817672,2.33138606,4289.3,4288.8,0.025]
[1757084817887,0.3096,4288.9,4288.8,0.025]
[1757084818259,1.02457359,4289.2,4288.8,0.025]
[1757084818596,3.87745286,4289.4,4288.8,0.025]
[1757084818894,1.0915,4289.4,4288.8,0.025]
[1757084819661,1.717,4289.7,4288.8,0.025]
[1757084819869,1.717,4289.7,4288.8,2.35663307]
[1757084820196,1.5461,4289.6,4288.8,0.025]
[1757084820538,2.64120017,4288.9,4288.8,0.025]
[1757084821127,1.8557,4288.9,4288.8,0.025]
[1757084821424,0.3096,4288.9,4288.8,0.025]
[1757084822297,4.18730017,4288.9,4288.8,0.025]
[1757084823136,7.97930017,4288.9,4288.8,0.025]
[1757084823336,2.33214393,4287.9,4287.8,0.025]
[1757084823536,9.68514393,4287.9,4287.8,0.025]
[1757084823742,12.33284393,4287.9,4287.8,0.025]
[1757084825408,12.33284393,4287.9,4287.8,1e-08]
[1757084825626,13.74513506,4287.9,4287.8,1e-08]
[1757084826256,13.74413506,4287.9,4287.8,1e-08]
[1757084826556,9.99294393,4287.9,4287.8,1e-08]
[1757084826852,1.718,4288.4,4287.8,1e-08]
[1757084827026,4.352,4288.6,4287.8,1.79250001]
[1757084827225,0.116,4288.3,4287.8,1.79250001]
[1757084827453,0.116,4288.3,4287.9,1.5061]
[1757084827630,4.352,4288.6,4287.8,1e-08]
[1757084827831,0.116,4287.9,4287.8,1e-08]
[1757084828030,0.116,4288.2,4287.8,1e-08]
[1757084828232,0.116,4288.2,4287.8,1.79250001]
[1757084828559,0.116,4288.4,4287.9,1.5061]
[1757084828738,0.116,4288.4,4288.0,2.33208419]
[1757084828932,0.116,4288.4,4287.9,1.5061]
[1757084829138,0.116,4288.4,4288.0,2.76358288]
[1757084829338,0.116,4288.4,4288.3,0.3122]
[1757084829555,0.116,4288.4,4288.3,2.6441264]
[1757084829756,0.116,4288.4,4288.3,4.1270264]
[1757084829960,1.718,4289.4,4287.9,0.116]
[1757084829961,0.116,4288.6,4287.9,0.116]
[1757084830258,0.116,4288.1,4287.8,1e-08]
[1757084831262,0.116,4288.1,4288.0,0.3122]
[1757084831462,0.116,4288.8,4288.7,2.3317089]
[1757084831759,0.116,4289.1,4288.7,0.3122]
[1757084831960,2.33147675,4289.2,4288.2,1.0514]
[1757084832175,2.33160434,4288.9,4287.9,2.33213654]
[1757084832326,0.116,4288.5,4288.3,2.33191079]
[1757084832530,0.116,4288.5,4288.0,2.76357072]
[1757084832752,0.116,4288.5,4287.8,1.16740001]
[1757084832942,0.116,4288.5,4287.9,2.3321302]
[1757084833167,0.116,4288.5,4288.4,0.3122]
[1757084833564,0.3056,4288.5,4287.8,1e-08]
[1757084833984,6.68161299,4288.9,4287.9,2.33210762]
[1757084835770,0.4611,4288.7,4287.8,1e-08]
[1757084835972,1.0155,4288.5,4287.8,1e-08]
[1757084836173,1.0155,4288.5,4288.3,0.004]
[1757084836358,0.3056,4288.4,4288.3,0.004]
[1757084836559,2.95013971,4288.8,4288.3,0.004]
[1757084836560,2.3317089,4288.7,4288.3,0.004]
[1757084836756,2.33181765,4288.5,4288.3,0.004]
[1757084837058,4.349,4288.9,4288.3,0.004]
[1757084837767,2.33165454,4288.8,4288.3,0.004]
[1757084837973,4.349,4288.9,4288.3,0.004]
[1757084839590,4.349,4288.9,4288.4,2.33183597]
[1757084839988,4.349,4288.9,4288.5,0.4315]
[1757084840298,4.349,4288.9,4288.3,0.004]
[1757084840299,6.065,4289.5,4288.6,0.4315]
[1757084840474,8.39627421,4289.5,4288.6,0.4315]
[1757084840692,2.33138274,4289.3,4288.3,0.004]
[1757084840907,2.33140217,4289.3,4288.3,0.004]
[1757084841100,1.4766,4289.4,4288.5,2.33181359]
[1757084841301,1.718,4289.5,4288.3,0.4355]
[1757084841610,4.347,4289.4,4288.3,0.4355]
[1757084841982,6.67835491,4289.4,4288.4,2.33187202]
[1757084842184,4.347,4289.4,4288.5,2.33181117]
[1757084842516,0.025,4289.8,4289.3,0.3122]
[1757084842721,0.025,4289.8,4289.5,2.33122195]
[1757084842923,0.025,4289.8,4289.0,2.33149624]
[1757084843090,0.025,4289.8,4288.9,14.9315]
[1757084843293,0.025,4289.8,4288.9,14.5]
[1757084843491,0.025,4289.8,4288.4,0.4315]
[1757084843492,0.116,4288.9,4288.4,2.33183733]
[1757084843690,0.116,4288.9,4288.4,0.4315]
[1757084843894,0.116,4288.9,4288.5,2.76326937]
[1757084844095,0.116,4288.9,4288.6,16.83175304]
[1757084844296,0.116,4288.9,4288.6,14.5]
[1757084844512,0.116,4288.9,4288.3,0.004]
[1757084844710,0.4216,4288.4,4288.3,0.004]
[1757084845394,0.116,4288.4,4288.3,0.004]
[1757084847927,0.3056,4288.4,4288.3,0.004]
[1757084848230,4.37781494,4288.4,4288.3,0.004]
[1757084848398,8.45807202,4288.4,4288.3,0.004]
[1757084848604,0.3056,4288.4,4288.3,0.004]
[1757084848828,3.0,4288.8,4288.3,0.004]
[1757084848998,4.8051,4288.9,4288.3,0.004]
[1757084849195,4.344,4288.9,4288.3,0.004]
[1757084850130,6.062,4289.4,4288.4,0.4315]
[1757084850329,0.025,4289.8,4288.8,2.64384479]
[1757084850627,0.025,4289.8,4288.8,2.64383008]
[1757084850830,2.35611711,4289.8,4288.8,2.64383008]
[1757084851029,0.4611,4289.7,4288.3,0.004]
[1757084851230,1.0405,4289.8,4288.4,1.4829]
[1757084851429,4.368,4289.8,4288.9,0.70072419]
[1757084851637,0.025,4289.8,4289.2,2.33139747]
[1757084851928,0.025,4289.8,4289.0,3.81444581]
[1757084851929,0.025,4289.8,4289.7,0.3122]
[1757084852308,0.025,4289.8,4289.3,2.76286607]
[1757084852630,0.025,4289.8,4289.7,4.12626534]
[1757084852832,0.3056,4289.4,4288.9,0.27742419]
[1757084853040,2.33167381,4288.8,4287.8,1e-08]
[1757084853199,4.32516738,4288.7,4287.8,1e-08]
[1757084853398,5.63747202,4288.4,4287.8,1e-08]
[1757084853718,4.6476,4288.4,4287.8,1e-08]
[1757084854030,0.53316738,4288.7,4287.8,1e-08]
[1757084854231,4.342,4288.6,4288.0,2.33204137]
[1757084854401,2.33143709,4289.2,4287.9,2.33612263]
[1757084854597,2.33154581,4289.0,4287.9,0.004]
[1757084854801,2.33169364,4288.8,4287.9,0.004]
[1757084855032,4.342,4288.7,4287.9,0.004]
[1757084855405,6.67371503,4288.7,4287.9,0.004]
[1757084855632,7.57424672,4288.7,4287.9,0.004]
[1757084855940,7.087,4289.3,4288.4,2.76333854]
[1757084855941,4.342,4289.0,4288.4,2.76333854]
[1757084856141,4.04939124,4289.3,4288.0,2.33207492]
[1757084856311,4.342,4289.2,4288.4,0.4315]
[1757084856706,4.342,4289.2,4287.9,1.0554]
[1757084856939,4.342,4289.2,4288.3,2.33592324]
[1757084857140,0.606,4289.1,4288.3,0.004]
[1757084857344,2.33163664,4288.9,4288.3,0.004]
[1757084857639,0.606,4289.1,4288.3,0.004]
[1757084857842,0.3025,4288.4,4288.3,0.004]
[1757084858138,2.63437202,4288.4,4288.3,0.004]
[1757084858356,7.23880922,4288.4,4288.3,0.004]
[1757084858943,8.25430922,4288.4,4288.3,0.004]
[1757084859138,5.9224372,4288.4,4288.3,0.004]
[1757084859353,0.9904,4289.0,4288.3,0.004]
[1757084859546,3.606,4289.1,4288.3,0.7451]
[1757084859839,4.341,4288.9,4288.3,0.7451]
[1757084860343,1.718,4289.3,4288.4,1.4452]
[1757084860954,4.04938309,4289.3,4288.5,14.5]
[1757084861249,4.341,4289.2,4288.6,2.33173243]
[1757084861418,0.001,4290.0,4288.6,1.91676484]
[1757084861614,0.001,4290.0,4289.2,2.33139678]
[1757084861846,0.001,4290.0,4289.3,2.33138079]
[1757084862042,0.001,4290.0,4289.4,0.4528]
[1757084862244,0.001,4290.0,4288.9,0.9924]
[1757084862445,0.001,4290.0,4289.2,2.33142608]
[1757084862645,0.001,4290.0,4289.3,2.33137565]
[1757084862850,0.001,4290.0,4289.2,2.33142743]
[1757084863147,0.001,4290.0,4288.9,0.9924]
[1757084863353,2.33202188,4290.0,4289.0,2.33153564]
[1757084863520,0.001,4290.0,4289.1,2.33148113]